fUST/lending_fUST_20240708
["ID","MTS","AMOUNT","RATE_DAILY","PERIOD"]
[331463091,1720427443296,-3248.42,0.00057534,120]
[331463093,1720427443306,-3248.42,0.00057534,120]
[331463094,1720427443315,-3248.42,0.00057534,120]
[331463095,1720427443325,-3248.42,0.00057534,120]
[331463096,1720427443334,-3248.60894323,0.00057534,120]
[331463098,1720427443344,-161.535327,0.00057534,120]
[331463100,1720427443354,-161.535327,0.00057534,120]
[331463102,1720427443363,-812.372887,0.00057534,120]
[331463104,1720427443372,-500.0,0.00057534,120]
[331463106,1720427443382,-500.0,0.00057534,120]
[331463108,1720427443391,-500.0,0.00057534,120]
[331463110,1720427443400,-812.372887,0.00057534,120]
[331463112,1720427443409,-161.535327,0.00057534,120]
[331463114,1720427443419,-161.535327,0.00057534,120]
[331463115,1720427443429,-812.372887,0.00057534,120]
[331463117,1720427443438,-812.372887,0.00057534,120]
[331463118,1720427443447,-4147.17,0.00057534,120]
[331463119,1720427443457,-633.28004618,0.00057534,120]
[331463120,1720427443466,-920.15,0.00057534,120]
[331463121,1720427443475,-500.0,0.00057534,120]
[331463122,1720427443486,-180.71333506,0.00057534,120]
[331463123,1720427443499,-500.0,0.00057534,120]
[331463124,1720427443508,-500.0,0.00057534,120]
[331463125,1720427443517,-500.0,0.00057534,120]
[331463126,1720427443526,-506.93604909,0.00057534,120]
[331463127,1720427443535,-386.51422723,0.00057534,120]
[331463128,1720427443544,-500.0,0.00057534,120]
[331463129,1720427443553,-255.26140429,0.00057534,120]
[331463130,1720427443563,-500.0,0.00057534,120]
[331463131,1720427443572,-500.0,0.00057534,120]
[331463133,1720427443581,-899.9,0.00057534,120]
[331463134,1720427443590,-500.0,0.00057534,120]
[331463136,1720427443599,-500.0,0.00057534,120]
[331463138,1720427443609,-659.27,0.00057534,120]
[331463140,1720427443618,-632.14,0.00057534,120]
[331463141,1720427443627,-1177.67,0.00057534,120]
[331463142,1720427443636,-5284.81372504,0.00057736,120]
[331463143,1720427443645,-999.0,0.00057808,120]
[331463144,1720427443654,-5284.81372504,0.00057956,120]
[331463145,1720427443663,-5284.81372504,0.00058103,120]
[331463146,1720427443673,-2142.72201995,0.0005815,2]
[331463147,1720427443682,-999.0,0.00058219,120]
[331463148,1720427443691,-5284.81372504,0.00058485,120]
[331463149,1720427443700,-999.0,0.0005863,120]
[331463150,1720427443709,-241.3222,0.00058769,2]
[331463151,1720427443718,-156.8926884,0.00058814,120]
[331463152,1720427443727,-5284.81372504,0.00058874,120]
[331463153,1720427443736,-151.0,0.00059,120]
[331463154,1720427443746,-151.0,0.00059,120]
[331463155,1720427443755,-5284.81372504,0.00059012,120]
[331463156,1720427443765,-999.0,0.00059041,120]
[331463157,1720427443778,-1197.52319115,0.000591,102]
[331463158,1720427443789,-1197.52319114,0.000591,102]
[331463160,1720427443799,-1197.52319114,0.000591,102]
[331463162,1720427443809,-1197.52319114,0.000591,102]
[331463164,1720427443820,-12181.83594817,0.000591,102]
[331463165,1720427443830,-12181.83594816,0.000591,102]
[331463167,1720427443840,-12181.83594816,0.000591,102]
[331463168,1720427443851,-5284.81372504,0.00059411,120]
[331463169,1720427443860,-999.0,0.00059452,120]
[331463170,1720427443870,-5284.81372504,0.00059508,120]
[331463171,1720427443880,-999.0,0.00059863,120]
[331463172,1720427443889,-2142.72201995,0.000599,2]
[331463173,1720427443899,-151.0,0.000599,120]
[331463174,1720427443909,-151.0,0.000599,120]
[331463175,1720427443918,-5284.81372504,0.00059935,120]
[331463176,1720427443928,-15826.4193568,0.0005999,7]
[331463177,1720427443937,-500.0,0.0006,2]
[331463178,1720427443947,-182.24,0.0006,120]
[331463179,1720427443956,-12194.76852203,0.0006,30]
[331463180,1720427443967,-329.834385,0.0006,120]
[331463181,1720427443977,-329.834385,0.0006,120]
[331463182,1720427443990,-247.991788,0.0006,120]
[331463183,1720427443999,-247.991788,0.0006,120]
[331463184,1720427444009,-214.283749,0.0006,120]
[331463185,1720427444018,-214.283749,0.0006,120]
[331463186,1720427444027,-161.535327,0.0006,120]
[331463187,1720427444037,-812.372887,0.0006,120]
[331463188,1720427444046,-161.535327,0.0006,120]
[331463189,1720427444055,-812.372887,0.0006,120]
[331463190,1720427444064,-5284.81372504,0.00060242,120]
[331463191,1720427444074,-999.0,0.00060273,120]
[331463192,1720427444083,-5284.81372504,0.00060386,120]
[331463193,1720427444094,-5284.81372504,0.00060644,120]
[331463194,1720427444104,-156.8926884,0.0006067,120]
[331463195,1720427444113,-999.0,0.00060684,120]
[331463196,1720427444123,-154.87169366,0.0006073,120]
[331463197,1720427444132,-154.87169366,0.00060992,120]
[331463198,1720427444141,-5284.81372504,0.00061017,120]
[331463199,1720427444151,-461.50368363,0.00061095,120]
[331463200,1720427444161,-15826.4193568,0.00061233,8]
[331463201,1720427444170,-5284.81372504,0.00061254,120]
[331463202,1720427444180,-151.0,0.00061397,120]
[331463203,1720427444190,-182.016995,0.00061433,120]
[331463204,1720427444200,-182.016995,0.00061433,120]
[331463205,1720427444210,-2000.0,0.00061479,4]
[331463206,1720427444219,-2000.0,0.00061488,4]
[331463207,1720427444229,-2000.0,0.00061497,4]
[331463208,1720427444241,-2000.0,0.00061506,4]
[331463209,1720427444250,-154.87169366,0.00061542,120]
[331463210,1720427444260,-5284.81372504,0.00061568,120]
[331463211,1720427444269,-5284.81372504,0.00061817,120]
[331463212,1720427444279,-2000.0,0.00061925,4]
[331463213,1720427444289,-2000.0,0.00061934,4]
[331463214,1720427444298,-15826.4193568,0.0006199,8]
[331463215,1720427444308,-9947.17432392,0.00062,90]
[331463216,1720427444317,-7000.1,0.00062,120]
[331463217,1720427444327,-217.690152,0.00062,120]
[331463218,1720427444400,-151.0,0.00062,120]
[331463219,1720427444410,-5284.81372504,0.00062166,120]
[331463220,1720427444419,-214.283749,0.00062237,120]
[331463221,1720427444428,-214.283749,0.00062237,120]
[331463222,1720427444438,-5284.81372504,0.00062313,120]
[331463223,1720427444449,-154.87169367,0.00062417,120]
[331463224,1720427444459,-5284.81372504,0.00062531,120]
[331463225,1720427444469,-329.834385,0.00062592,120]
[331463226,1720427444479,-329.834385,0.00062592,120]
[331463227,1720427444494,-247.991788,0.00062592,120]
[331463228,1720427444504,-247.991788,0.00062592,120]
[331463229,1720427444514,-161.535327,0.00062592,120]
[331463230,1720427444524,-812.372887,0.00062592,120]
[331463231,1720427444534,-161.535327,0.00062592,120]
[331463232,1720427444543,-812.372887,0.00062592,120]
[331463233,1720427444552,-194.23989892,0.000629,120]
[331463234,1720427444562,-194.73,0.000629,120]
[331463235,1720427444571,-5284.81372504,0.00062985,120]
[331463236,1720427444581,-182.016995,0.0006299,120]
[331463237,1720427444590,-182.016995,0.0006299,120]
[331463238,1720427444600,-21396.91827947,0.00063,120]
[331463239,1720427444712,-257.715,0.00063,120]
[331463240,1720427444827,-178736.34425753,0.00063,120]
[331463241,1720427444836,-182.016995,0.00063,120]
[331463242,1720427444845,-182.016995,0.00063,120]
[331463243,1720427444856,-329.834385,0.00063,120]
[331463244,1720427444866,-329.834385,0.00063,120]
[331463245,1720427444876,-247.991788,0.00063,120]
[331463246,1720427444885,-247.991788,0.00063,120]
[331463247,1720427444894,-214.283749,0.00063,120]
[331463248,1720427444903,-214.283749,0.00063,120]
[331463249,1720427444913,-151.0,0.00063,120]
[331463250,1720427444922,-161.535327,0.00063,120]
[331463251,1720427444931,-812.372887,0.00063,120]
[331463252,1720427444940,-161.535327,0.00063,120]
[331463253,1720427444949,-812.372887,0.00063,120]
[331463255,1720427444959,-150.59940171,0.0006301,120]
[331463256,1720427444969,-500.0,0.00063013,120]
[331463258,1720427444978,-500.0,0.00063013,120]
[331463260,1720427444989,-500.0,0.00063013,120]
[331463261,1720427444998,-500.0,0.00063013,120]
[331463262,1720427445007,-500.0,0.00063013,120]
[331463263,1720427445016,-500.0,0.00063013,120]
[331463264,1720427445025,-500.0,0.00063013,120]
[331463265,1720427445035,-500.0,0.00063013,120]
[331463266,1720427445044,-500.0,0.00063013,120]
[331463267,1720427445053,-500.0,0.00063013,120]
[331463268,1720427445062,-500.0,0.00063013,120]
[331463270,1720427445071,-516.51,0.00063013,120]
[331463272,1720427445080,-500.0,0.00063013,120]
[331463274,1720427445090,-500.0,0.00063013,120]
[331463275,1720427445099,-993.02,0.00063013,120]
[331463276,1720427445108,-2064.84,0.00063013,120]
[331463277,1720427445117,-1889.84,0.00063013,120]
[331463278,1720427445126,-500.0,0.00063013,120]
[331463279,1720427445136,-500.0,0.00063013,120]
[331463280,1720427445144,-500.0,0.00063013,120]
[331463281,1720427445154,-500.0,0.00063013,120]
[331463282,1720427445163,-500.0,0.00063013,120]
[331463283,1720427445172,-500.0,0.00063013,120]
[331463284,1720427445181,-500.0,0.00063013,120]
[331463285,1720427445190,-510.05,0.00063013,120]
[331463286,1720427445199,-578.95293301,0.00063013,120]
[331463287,1720427445209,-500.0,0.00063013,120]
[331463288,1720427445218,-500.0,0.00063013,120]
[331463289,1720427445227,-500.0,0.00063013,120]
[331463290,1720427445239,-500.0,0.00063013,120]
[331463291,1720427445248,-500.0,0.00063013,120]
[331463292,1720427445257,-500.0,0.00063013,120]
[331463293,1720427445266,-500.54332682,0.00063013,120]
[331463294,1720427445274,-500.0,0.00063013,120]
[331463295,1720427445283,-500.0,0.00063013,120]
[331463296,1720427445292,-500.0,0.00063013,120]
[331463297,1720427445302,-500.0,0.00063013,120]
[331463298,1720427445311,-182.016995,0.00063013,120]
[331463299,1720427445320,-182.016995,0.00063013,120]
[331463300,1720427445329,-500.0,0.00063013,120]
[331463301,1720427445339,-500.0,0.00063013,120]
[331463302,1720427445348,-500.0,0.00063013,120]
[331463303,1720427445356,-500.0,0.00063013,120]
[331463304,1720427445365,-977.88,0.00063013,120]
[331463305,1720427445375,-542.34642721,0.00063013,120]
[331463306,1720427445385,-500.0,0.00063013,120]
[331463307,1720427445394,-534.13,0.00063013,120]
[331463308,1720427445404,-1337.52,0.00063013,120]
[331463309,1720427445414,-500.0,0.00063013,120]
[331463310,1720427445423,-1000.0,0.00063013,120]
[331463311,1720427445432,-329.834385,0.00063013,120]
[331463312,1720427445442,-329.834385,0.00063013,120]
[331463313,1720427445451,-1414.04,0.00063013,120]
[331463314,1720427445460,-247.991788,0.00063013,120]
[331463315,1720427445470,-247.991788,0.00063013,120]
[331463316,1720427445479,-925.08,0.00063013,120]
[331463317,1720427445491,-500.0,0.00063013,120]
[331463318,1720427445500,-500.0,0.00063013,120]
[331463319,1720427445509,-214.283749,0.00063013,120]
[331463320,1720427445518,-500.0,0.00063013,120]
[331463321,1720427445527,-214.283749,0.00063013,120]
[331463322,1720427445536,-500.0,0.00063013,120]
[331463323,1720427445545,-500.0,0.00063013,120]
[331463324,1720427445554,-500.0,0.00063013,7]
[331463325,1720427445564,-395.03900267,0.00063013,120]
[331463326,1720427445573,-500.0,0.00063013,120]
[331463327,1720427445583,-500.0,0.00063013,120]
[331463328,1720427445592,-1182.78,0.00063013,120]
[331463329,1720427445602,-2000.0,0.00063013,120]
[331463330,1720427445611,-500.0,0.00063013,120]
[331463331,1720427445620,-500.0,0.00063013,120]
[331463332,1720427445629,-151.0,0.00063013,120]
[331463333,1720427445639,-1339.05,0.00063013,120]
[331463334,1720427445648,-13041.32,0.00063013,120]
[331463335,1720427445657,-3292.02,0.00063013,120]
[331463336,1720427445666,-500.0,0.00063013,120]
[331463337,1720427445675,-916.41,0.00063013,120]
[331463338,1720427445684,-524.32,0.00063013,120]
[331463339,1720427445694,-500.0,0.00063013,120]
[331463340,1720427445703,-1500.0,0.00063013,14]
[331463341,1720427445713,-1500.0,0.00063013,14]
[331463342,1720427445722,-1500.0,0.00063013,14]
[331463343,1720427445731,-991.015589,0.00063013,14]
[331463344,1720427445742,-500.0,0.00063013,120]
[331463345,1720427445818,-500.0,0.00063013,120]
[331463346,1720427445827,-1198.75,0.00063013,120]
[331463347,1720427445837,-500.0,0.00063013,10]
[331463348,1720427445846,-500.0,0.00063013,120]
[331463349,1720427445857,-1608.24,0.00063013,120]
[331463350,1720427445867,-1000.0,0.00063013,120]
[331463351,1720427445876,-500.0,0.00063013,120]
[331463352,1720427445886,-500.0,0.00063013,120]
[331463353,1720427445895,-500.0,0.00063013,120]
[331463354,1720427445904,-1072.59,0.00063013,120]
[331463355,1720427445914,-500.0,0.00063013,120]
[331463356,1720427445923,-296.46814856,0.00063013,120]
[331463357,1720427445932,-500.0,0.00063013,120]
[331463358,1720427445942,-161.535327,0.00063013,120]
[331463359,1720427445951,-500.0,0.00063013,120]
[331463360,1720427445961,-812.372887,0.00063013,120]
[331463361,1720427445971,-161.535327,0.00063013,120]
[331463362,1720427445981,-812.372887,0.00063013,120]
[331463363,1720427445994,-4147.17,0.00063013,120]
[331463364,1720427446004,-920.15,0.00063013,120]
[331463365,1720427446013,-500.0,0.00063013,120]
[331463366,1720427446022,-500.0,0.00063013,120]
[331463367,1720427446034,-564.60346803,0.00063013,120]
[331463368,1720427446043,-500.0,0.00063013,120]
[331463369,1720427446052,-414.61199313,0.00063013,120]
[331463370,1720427446062,-500.0,0.00063013,120]
[331463371,1720427446071,-275.63875747,0.00063013,120]
[331463372,1720427446080,-899.9,0.00063013,120]
[331463373,1720427446090,-500.0,0.00063013,120]
[331463374,1720427446099,-500.0,0.00063013,120]
[331463375,1720427446109,-659.27,0.00063013,120]
[331463376,1720427446118,-632.14,0.00063013,120]
[331463377,1720427446127,-1177.67,0.00063013,120]
[331463378,1720427446136,-270.54081462,0.00063013,2]
[331463379,1720427446146,-5284.81372504,0.00063316,120]
[331463380,1720427446155,-5284.81372504,0.00063577,120]
[331463382,1720427446165,-151.0,0.00063781,120]
[331463384,1720427446174,-5284.81372504,0.00064005,120]
[331463386,1720427446183,-151.07444044,0.00064012,60]
[331463389,1720427446192,-151.0,0.00064192,120]
[331463391,1720427446201,-5284.81372504,0.00064235,120]
[331463394,1720427446211,-5284.81372504,0.00064386,120]
[331463396,1720427446220,-5284.81372504,0.00064852,120]
[331463398,1720427446229,-7000.0,0.00065,120]
[331463399,1720427446242,-3035.271439,0.00065,120]
[331463400,1720427446251,-512.0,0.00065,120]
[331463401,1720427446260,-5284.81372504,0.00065125,120]
[331463402,1720427446269,-4199.23355697,0.00065285,120]
[331463419,1720427447891,-500.0,0.00054795,120]
[331463420,1720427447900,-500.0,0.00054795,120]
[331463421,1720427447910,-500.0,0.00054795,120]
[331463422,1720427447919,-500.0,0.00054795,120]
[331463423,1720427447929,-650.0,0.00054795,120]
[331463424,1720427447938,-500.0,0.00054795,120]
[331463425,1720427447947,-5446.97,0.00057524,3]
[331463428,1720427535843,176.773177,0.00021096,2]
[331463429,1720427598079,358.45712229,0.00021096,2]
[331464954,1720427744146,1494.7298865,0.0002448,2]
[331465525,1720427773881,39686.92289447,0.00038762,120]
[331467983,1720427901052,227.60020164,0.00025204,2]
[331468341,1720427920619,251.44510889,0.00025204,2]
[331468394,1720428097370,165.214433,0.00021096,2]
[331468395,1720428143950,-300.0,0.00027183,2]
[331468396,1720428143973,-1486.3739,0.00027184,2]
[331468397,1720428192554,-1837.0439,0.00025869,2]
[331468400,1720428233691,-1119.0754,0.00025501,2]
[331468401,1720428282169,-1029.3168,0.00025501,2]
[331468402,1720428297221,925.92328813,0.00038827,30]
[331468404,1720428318782,500.0,0.00038827,30]
[331468405,1720428319486,-1192.927,0.00025501,2]
[331468407,1720428347170,-1673.16091169,0.00025501,2]
[331468409,1720428366085,-13469.8918,0.00025501,2]
[331468411,1720428372662,391.03594334,0.00038827,120]
[331468413,1720428424949,-22913.9652,0.00025501,2]
[331468414,1720428432094,-600.0,0.00025501,2]
[331468416,1720428439162,-3156.25030798,0.00025501,2]
[331468417,1720428441094,-5842.95626175,0.00025501,2]
[331468418,1720428446077,-9700.60186009,0.00025501,2]
[331468444,1720428541186,300.0,0.000255,2]
[331468445,1720428550093,-421.4203352,0.00025501,2]
[331468446,1720428550114,-278.4044108,0.00025501,2]
[331468447,1720428550136,-225.53942994,0.00025501,2]
[331468448,1720428550159,-8397.20445849,0.00025501,2]
[331468449,1720428550180,-166.666666,0.00027309,2]
[331468450,1720428550205,-7361.94426791,0.00027695,2]
[331468455,1720428570073,-1507.82516939,0.00027695,2]
[331468456,1720428570093,-157.691418,0.00029474,2]
[331468457,1720428570115,-261.68744943,0.00029899,2]
[331468458,1720428570139,-308.40386736,0.00029903,2]
[331468459,1720428570159,-309.05737808,0.00029903,2]
[331468460,1720428570184,-176.51217966,0.00029903,2]
[331468461,1720428570205,-429.31673618,0.00029903,2]
[331468462,1720428570230,-308.40386736,0.00029903,2]
[331468463,1720428570254,-526.06091387,0.00029904,2]
[331468464,1720428570274,-1202.09800209,0.00029904,4]
[331468465,1720428570295,-154.57491897,0.00029904,2]
[331468466,1720428570315,-523.84731011,0.00029904,2]
[331468467,1720428570336,-156.56418552,0.00029904,2]
[331468468,1720428570358,-155.42805707,0.00029904,2]
[331468469,1720428570379,-435.0,0.00029904,2]
[331468470,1720428570399,-155.06564544,0.00029904,2]
[331468471,1720428570421,-261.33237172,0.00029904,2]
[331468472,1720428570440,-375.49562509,0.00029904,2]
[331468473,1720428570462,-198.4253475,0.00029979,2]
[331468474,1720428570483,-3139.47718346,0.00029979,2]
[331468475,1720428570511,-264.97857403,0.00029979,2]
[331468476,1720428570534,-155.58300829,0.00029979,2]
[331468477,1720428570554,-5210.0005731,0.00029999,2]
[331468478,1720428570574,-209.44492491,0.00030229,4]
[331468479,1720428570593,-4148.73056463,0.0003091,4]
[331468480,1720428570613,-160.94297725,0.0003091,4]
[331468481,1720428570633,-21031.92816823,0.00032229,2]
[331468482,1720428573152,-2140.53580868,0.00032229,2]
[331468483,1720428573173,-418.59524625,0.000324,2]
[331468484,1720428573194,-1202.34331483,0.000325,60]
[331468485,1720428573218,-7394.33187009,0.00034472,2]
[331468486,1720428573247,-1431.50327782,0.00034574,2]
[331468487,1720428573269,-256.72904767,0.00034702,2]
[331468488,1720428573291,-1662.013679,0.00035,4]
[331468489,1720428573312,-668.92964396,0.00035,30]
[331468490,1720428573333,-257.7502026,0.0003624,2]
[331468491,1720428573353,-199.0,0.0003645,30]
[331468492,1720428573375,-740.80167039,0.00036662,2]
[331468493,1720428573395,-582.38135777,0.00038,10]
[331468494,1720428573417,-418.59524625,0.00038605,2]
[331468495,1720428573438,-525.6,0.000387,62]
[331468496,1720428573458,-284.48602988,0.00038827,3]
[331468497,1720428573479,-740.80167039,0.00041662,2]
[331468498,1720428573506,-157.59667048,0.00042262,30]
[331468499,1720428573529,-154.87169365,0.00042699,30]
[331468500,1720428573551,-1786.2993495,0.00043,120]
[331468501,1720428573572,-157.59667048,0.00043075,30]
[331468502,1720428573593,-154.87169365,0.00044122,30]
[331468503,1720428573612,-165.214433,0.00044274,2]
[331468504,1720428573632,-157.59667048,0.00044751,30]
[331468505,1720428573651,-418.59524625,0.00044809,2]
[331468506,1720428573672,-2142.72201999,0.0004482,2]
[331468507,1720428573691,-31945.78,0.00044829,3]
[331468508,1720428573710,-102.44578056,0.00044839,3]
[331468606,1720428633793,168.549646,0.00021096,2]
[331468630,1720428638093,-442.76560864,0.00033569,2]
[331468631,1720428638106,-726.88,0.00033569,2]
[331468632,1720428638195,-47197.09939136,0.00033569,2]
[331468633,1720428638206,-330.30586946,0.00033569,4]
[331468634,1720428638217,-7394.33187009,0.00033569,2]
[331468635,1720428638229,-299.83437737,0.00033569,4]
[331468636,1720428638238,-1431.50327782,0.00033569,2]
[331468637,1720428638249,-7000.00077,0.00033569,4]
[331468638,1720428638259,-1087.23957238,0.00033569,2]
[331468639,1720428638270,-256.72904767,0.00033569,2]
[331468640,1720428638284,-181.56729363,0.00033569,4]
[331468641,1720428638294,-284.13363239,0.00033569,3]
[331468642,1720428638303,-1662.013679,0.00035,4]
[331468643,1720428638313,-620.01219253,0.00035743,2]
[331468644,1720428638323,-1003.695541,0.000385,27]
[331468645,1720428638333,-18083.5388506,0.00044909,5]
[331468646,1720428638344,-40864.19,0.0004495,3]
[331468647,1720428638354,-22901.69,0.0004496,3]
[331468648,1720428638436,-1000.0,0.0004497,30]
[331468649,1720428638450,-18083.5388506,0.0004499,5]
[331468650,1720428638459,-150.29238822,0.00045,2]
[331468651,1720428638470,-53755.123413,0.00045,120]
[331468652,1720428638479,-154.87169365,0.0004533,30]
[331468653,1720428638489,-618.99346542,0.000458,30]
[331468654,1720428638498,-154.87169365,0.00046438,30]
[331468655,1720428638508,-157.59667048,0.00046449,30]
[331468656,1720428638518,-154.87169365,0.00047105,30]
[331468657,1720428638529,-154.87169365,0.0004722,30]
[331468658,1720428638539,-2142.72201995,0.00047974,2]
[331468659,1720428638548,-6088.115,0.00048,120]
[331468660,1720428638558,-154.87169365,0.00048445,30]
[331468661,1720428638567,-154.87169365,0.00048446,30]
[331468662,1720428638577,-1880.50178706,0.000488,120]
[331468663,1720428638586,-500.0,0.00048999,120]
[331468664,1720428638595,-500.0,0.00048999,120]
[331468665,1720428638604,-459.35012759,0.00048999,120]
[331468666,1720428638614,-500.0,0.00048999,120]
[331468667,1720428638623,-500.0,0.00048999,120]
[331468668,1720428638633,-504.64650764,0.00048999,120]
[331468669,1720428638643,-500.0,0.00048999,120]
[331468670,1720428638653,-500.0,0.00048999,120]
[331468671,1720428638663,-500.0,0.00048999,120]
[331468672,1720428638673,-261.68830985,0.00048999,120]
[331468673,1720428638683,-183.65759861,0.00048999,120]
[331468674,1720428638692,-594.06542284,0.00048999,120]
[331468675,1720428638701,-186.83195926,0.00048999,120]
[331468676,1720428638711,-500.0,0.00048999,120]
[331468677,1720428638720,-500.0,0.00048999,120]
[331468678,1720428638730,-153.07448977,0.00048999,120]
[331468679,1720428638739,-500.0,0.00048999,120]
[331468680,1720428638749,-10011.52,0.00049,30]
[331468681,1720428638759,-154.87169365,0.00049065,30]
[331468682,1720428638768,-823.55,0.00049315,120]
[331468683,1720428638779,-823.55,0.00049315,120]
[331468684,1720428638788,-823.55,0.00049315,120]
[331468685,1720428638798,-823.55,0.00049315,120]
[331468686,1720428638808,-823.55,0.00049315,120]
[331468687,1720428638818,-823.55,0.00049315,120]
[331468688,1720428638828,-823.55,0.00049315,120]
[331468689,1720428638837,-823.55,0.00049315,120]
[331468690,1720428638847,-823.55,0.00049315,120]
[331468691,1720428638857,-823.55,0.00049315,120]
[331468692,1720428638867,-823.55,0.00049315,120]
[331468693,1720428638876,-823.55,0.00049315,120]
[331468694,1720428638885,-823.55,0.00049315,120]
[331468695,1720428638895,-823.55,0.00049315,120]
[331468696,1720428638904,-823.55,0.00049315,120]
[331468697,1720428638913,-823.55,0.00049315,120]
[331468698,1720428638922,-823.55,0.00049315,120]
[331468699,1720428638932,-823.55,0.00049315,120]
[331468700,1720428638942,-823.55,0.00049315,120]
[331468701,1720428638951,-823.55,0.00049315,120]
[331468702,1720428638961,-823.55,0.00049315,120]
[331468703,1720428638970,-823.55,0.00049315,120]
[331468704,1720428638979,-823.55,0.00049315,120]
[331468705,1720428638989,-823.63521076,0.00049315,120]
[331468706,1720428638999,-18083.5388506,0.0004999,6]
[331468707,1720428639008,-154.55950541,0.0005,30]
[331468708,1720428639018,-5552.88867932,0.0005,7]
[331468709,1720428639029,-44750.66253162,0.0005,15]
[331468710,1720428639040,-533.81299865,0.0005,30]
[331468711,1720428639051,-150.0,0.00050238,2]
[331468712,1720428639061,-154.87169365,0.00050302,60]
[331468713,1720428639071,-2523.76173422,0.00051,14]
[331468714,1720428639081,-2142.72201995,0.00051127,2]
[331468715,1720428639091,-999.0,0.00052054,120]
[331468716,1720428639101,-500.0,0.00052055,120]
[331468717,1720428639111,-500.0,0.00052055,120]
[331468718,1720428639120,-500.0,0.00052055,120]
[331468719,1720428639130,-493.862443,0.00052055,120]
[331468720,1720428639140,-500.0,0.00052055,120]
[331468721,1720428639152,-500.0,0.00052055,120]
[331468722,1720428639166,-500.0,0.00052055,120]
[331468723,1720428639176,-500.0,0.00052055,120]
[331468724,1720428639187,-500.0,0.00052055,120]
[331468725,1720428639199,-500.0,0.00052055,120]
[331468726,1720428639209,-583.41751972,0.00052055,120]
[331468727,1720428639220,-500.0,0.00052055,120]
[331468728,1720428639232,-500.0,0.00052055,120]
[331468729,1720428639243,-500.0,0.00052055,120]
[331468730,1720428639253,-500.0,0.00052055,120]
[331468731,1720428639264,-500.0,0.00052055,120]
[331468732,1720428639273,-500.0,0.00052055,120]
[331468733,1720428639291,-154.87169365,0.00052399,60]
[331468734,1720428639303,-999.0,0.00052465,120]
[331468735,1720428639314,-600.0,0.000528,2]
[331468737,1720428639324,-999.0,0.00052876,120]
[331468739,1720428639335,-401.28065198,0.00053,120]
[331468741,1720428639345,-999.0,0.00053287,120]
[331468742,1720428639355,-197.65516536,0.000533,120]
[331468744,1720428639365,-813.2432863,0.0005335,2]
[331468746,1720428639376,-154.87169365,0.00053494,60]
[331468747,1720428639386,-999.0,0.00053698,120]
[331468748,1720428639396,-999.0,0.00054109,120]
[331468749,1720428639407,-2142.72201995,0.00054281,2]
[331468750,1720428639416,-999.0,0.0005452,120]
[331468751,1720428639425,-154.87169365,0.00054698,60]
[331468752,1720428639435,-18083.5388506,0.00054785,6]
[331468753,1720428639445,-337.82941501,0.00054795,120]
[331468754,1720428639455,-500.0,0.00054795,120]
[331468755,1720428639465,-500.0,0.00054795,120]
[331468756,1720428639476,-500.0,0.00054795,120]
[331468757,1720428639486,-500.0,0.00054795,120]
[331468758,1720428639496,-500.0,0.00054795,120]
[331468759,1720428639508,-500.0,0.00054795,120]
[331468760,1720428639518,-500.0,0.00054795,120]
[331468761,1720428639531,-500.0,0.00054795,120]
[331468762,1720428639541,-500.0,0.00054795,120]
[331468763,1720428639552,-500.0,0.00054795,120]
[331468764,1720428639562,-500.0,0.00054795,120]
[331468765,1720428639572,-500.0,0.00054795,120]